bitfinex-derivatives/quotes_ETHF0:USTF0_20230402
["timestamp","ask_amount","ask_price","bid_price","bid_amount"]
[1680443975517,0.57665901,1813.9,1813.7,3.2078]
[1680443978127,0.57665901,1814.0,1813.7,3.2078]
[1680443981627,0.00455744,1813.9,1813.7,3.2078]
[1680443983321,0.00455744,1813.9,1813.8,1.0]
[1680443983624,0.00455744,1813.9,1813.7,3.2078]
[1680443983818,0.00455744,1813.9,1813.8,1.0]
[1680443984015,0.00455744,1813.9,1813.7,3.2078]
[1680443984220,0.00455744,1813.9,1813.8,1.0]
[1680443984427,0.00455744,1813.9,1813.7,3.2078]
[1680443984621,0.00455744,1813.9,1813.8,1.0]
[1680443984830,0.00455744,1813.9,1813.7,3.2078]
[1680443985033,0.00024564,1813.9,1813.8,1.0]
[1680443985225,0.57665901,1814.0,1813.8,1.0]
[1680443985426,0.57665901,1814.0,1813.7,3.2078]
[1680443995226,0.57665901,1813.9,1813.7,3.2078]
[1680443996633,0.57665901,1814.1,1813.8,1.0]
[1680443996940,0.57665901,1814.2,1814.0,3.2078]
[1680444001171,0.57665901,1814.1,1814.0,3.2078]
[1680444001543,1.57665901,1814.2,1814.0,3.2078]
[1680444001755,0.57665901,1814.1,1814.0,3.2078]
[1680444001944,0.57665901,1814.1,1813.8,3.2078]
[1680444002143,1.15760423,1813.9,1813.7,1.0]
[1680444002448,0.57718164,1814.0,1813.6,4.07085963]
[1680444002944,1.57718164,1814.0,1813.6,4.07085963]
[1680444003344,0.57718164,1814.0,1813.8,3.2078]
[1680444005450,0.57718164,1813.9,1813.8,3.2078]
[1680444005849,4.36540423,1814.0,1813.6,1.0]
[1680444006147,0.57746631,1813.8,1813.6,0.86305963]
[1680444009363,0.57746631,1813.7,1813.6,0.86305963]
[1680444012352,0.57746631,1813.7,1813.5,1.15099365]
[1680444012353,4.36540423,1813.8,1813.5,0.86305963]
[1680444012671,4.36540423,1813.6,1813.3,0.86305963]
[1680444012855,0.57770453,1813.4,1813.1,0.86305963]
[1680444013066,0.57770453,1813.3,1813.1,0.86305963]
[1680444013358,0.58251062,1813.3,1813.1,0.86305963]
[1680444013551,1.58251062,1813.3,1813.1,0.86305963]
[1680444013746,0.58251062,1813.3,1813.1,0.86305963]
[1680444014364,0.00480609,1813.3,1813.1,0.86305963]
[1680444014658,0.57770453,1813.4,1813.1,0.86305963]
[1680444015961,0.00480609,1813.3,1813.1,0.86305963]
[1680444016462,0.57770453,1813.4,1813.1,0.86305963]
[1680444018667,1.57770453,1813.5,1813.0,4.07085963]
[1680444021160,0.57770453,1813.5,1813.0,4.07085963]
[1680444024373,0.57770453,1813.5,1813.0,0.86305963]
[1680444024568,3.2078,1813.2,1812.9,0.002]
[1680444024772,0.57770453,1813.3,1812.9,0.002]
[1680444025079,5.65063568,1813.4,1812.9,0.002]
[1680444025272,1.0,1813.3,1812.9,0.002]
[1680444028488,3.2078,1813.2,1812.9,0.002]
[1680444028771,1.0,1813.1,1812.9,0.002]
[1680444028967,1.0,1813.3,1813.0,3.2078]
[1680444030782,4.2078,1813.4,1813.0,3.2078]
[1680444030990,0.00556646,1813.2,1813.0,3.2078]
[1680444031168,4.2078,1813.4,1813.0,3.2078]
[1680444036980,4.2078,1813.4,1812.9,0.002]
[1680444037185,1.0,1813.3,1812.9,0.002]
[1680444037982,4.2078,1813.4,1812.9,0.002]
[1680444038287,1.0,1813.3,1812.9,0.002]
[1680444038578,1.0,1813.3,1813.0,3.2078]
[1680444038796,4.2078,1813.4,1813.0,3.2078]
[1680444041196,13.669,1813.5,1813.2,3.2078]
[1680444041378,0.57770453,1813.7,1813.2,3.2078]
[1680444041685,1.57770453,1813.7,1813.2,3.2078]
[1680444042671,0.57770453,1813.7,1813.2,3.2078]
[1680444042882,1.57770453,1813.7,1813.2,3.2078]
[1680444043354,0.57770453,1813.6,1813.2,3.2078]
[1680444044084,1.57770453,1813.7,1813.2,3.2078]
[1680444044678,2.44283568,1813.7,1813.2,3.2078]
[1680444045082,1.57770453,1813.7,1813.2,3.2078]
[1680444045281,0.57770453,1813.6,1813.1,0.86305963]
[1680444045500,0.57770453,1813.6,1813.0,9.59285963]
[1680444045501,0.57770453,1813.5,1813.0,9.59285963]
[1680444045781,1.0,1813.5,1813.2,3.2078]
[1680444046079,0.00404581,1813.4,1813.2,3.2078]
[1680444046475,0.57770453,1813.6,1813.2,3.2078]
[1680444050490,1.44283568,1813.6,1813.2,3.2078]
[1680444052187,1.44283568,1813.6,1813.2,8.7298]
[1680444052489,2.15760423,1813.8,1813.4,3.2078]
[1680444052490,0.57770453,1813.7,1813.4,3.2078]
[1680444052682,1.44283568,1813.7,1813.4,3.2078]
[1680444053084,0.57770453,1813.7,1813.4,3.2078]
[1680444053289,1.44283568,1813.7,1813.4,3.2078]
[1680444053487,0.57770453,1813.7,1813.4,3.2078]
[1680444053682,0.57770453,1813.7,1813.6,3.2078]
[1680444053979,0.57770453,1813.7,1813.6,3.2038369]
[1680444054596,1.44283568,1813.7,1813.6,3.2038369]
[1680444054783,0.57770453,1813.7,1813.6,3.2038369]
[1680444056502,0.57770453,1813.8,1813.6,8.7258369]
[1680444056679,1.44283568,1813.9,1813.6,9.29904784]
[1680444056887,1.44283568,1813.9,1813.8,3.2078]
[1680444058596,0.57710877,1813.9,1813.8,3.2078]
[1680444061192,0.57701594,1814.1,1813.8,9.30301094]
[1680444061395,0.57701594,1814.2,1814.0,3.2078]
[1680444061601,0.57701594,1814.2,1814.0,8.7298]
[1680444063682,1.44214709,1814.3,1814.0,8.7298]
[1680444063881,1.44214709,1814.3,1814.2,3.2078]
[1680444064605,0.57701594,1814.3,1814.2,3.2078]
[1680444065398,1.44214709,1814.3,1814.2,3.2078]
[1680444065900,0.57701594,1814.3,1814.2,3.2078]
[1680444067891,1.44214709,1814.4,1814.2,3.2078]
[1680444068086,0.57701594,1814.4,1814.2,3.2078]
[1680444069895,1.57701594,1814.5,1814.2,3.2078]
[1680444070997,0.57701594,1814.5,1814.2,3.2078]
[1680444072300,0.57701594,1814.6,1814.2,8.7298]
[1680444072801,1.57701594,1814.6,1814.2,8.7298]
[1680444073903,0.57701594,1814.6,1814.2,8.7298]
[1680444074200,1.0,1814.6,1814.2,8.7298]
[1680444075305,4.78481594,1814.7,1814.2,8.7298]
[1680444075905,4.78481594,1814.7,1814.3,0.15032564]
[1680444077402,0.57701594,1814.7,1814.4,3.2078]
[1680444077604,1.57701594,1814.7,1814.4,3.2078]
[1680444077916,1.0,1814.7,1814.4,3.2078]
[1680444078598,0.57701594,1814.7,1814.4,3.2078]
[1680444078801,1.0,1814.7,1814.4,3.2078]
[1680444079318,2.44214709,1814.8,1814.4,3.2078]
[1680444079715,1.57701594,1814.8,1814.4,3.2078]
[1680444081808,1.0,1814.8,1814.4,3.2078]
[1680444082107,1.57701594,1814.8,1814.4,3.2078]
[1680444082606,1.0,1814.8,1814.4,3.2078]
[1680444082805,1.57701594,1814.8,1814.4,3.2078]
[1680444084414,1.0,1814.8,1814.4,3.2078]
[1680444084603,1.57701594,1814.8,1814.4,3.2078]
[1680444085005,0.57701594,1814.8,1814.4,3.2078]
[1680444085999,4.78481594,1814.9,1814.4,3.2078]
[1680444086403,4.64994709,1814.9,1814.4,3.2078]
[1680444086706,3.78481594,1814.9,1814.4,3.2078]
[1680444087907,3.78481594,1814.9,1814.4,8.7298]
[1680444090905,3.78481594,1814.9,1814.5,0.1962008]
[1680444091701,0.57701594,1814.9,1814.6,3.2078]
[1680444094612,0.57701594,1814.8,1814.6,3.2078]
[1680444094911,0.57701594,1814.9,1814.6,3.2078]
[1680444096619,0.57701594,1814.8,1814.6,3.2078]
[1680444098410,1.57701594,1814.8,1814.6,3.2078]
[1680444098720,0.57701594,1814.7,1814.6,3.2078]
[1680444099015,1.57701594,1814.8,1814.6,3.2078]
[1680444099309,0.57701594,1814.8,1814.6,3.2078]
[1680444102673,1.44214709,1814.8,1814.6,3.2078]
[1680444102820,0.57701594,1814.7,1814.6,3.2078]
[1680444105959,0.57701594,1814.7,1814.6,3.49375024]
[1680444113022,0.57701594,1814.8,1814.6,4.06696118]
[1680444115451,0.57701594,1814.9,1814.7,0.57321094]
[1680444115745,0.57701594,1814.9,1814.8,3.2078]
[1680444115746,1.44214709,1814.9,1814.8,3.2078]
[1680444115924,0.57701594,1814.9,1814.8,3.2078]
[1680444117831,1.44214709,1814.9,1814.8,3.2078]
[1680444118227,0.86513115,1814.9,1814.8,3.2078]
[1680444119027,0.57707722,1814.9,1814.8,3.2078]
[1680444119730,1.44220837,1814.9,1814.8,3.2078]
[1680444120423,0.57707722,1814.9,1814.8,3.2078]
[1680444120928,0.57707722,1814.9,1814.8,3.5727248]
[1680444121921,1.44220837,1814.9,1814.8,3.5727248]
[1680444122431,0.86513115,1814.9,1814.8,3.5727248]
[1680444123197,1.4423361,1814.9,1814.8,3.5727248]
[1680444123326,0.86513115,1814.9,1814.8,3.5727248]
[1680444123629,0.57712246,1814.9,1814.8,3.5727248]
[1680444123825,1.44225361,1814.9,1814.8,3.5727248]
[1680444125024,0.86513115,1814.9,1814.8,3.5727248]
[1680444125429,0.57718305,1814.9,1814.8,0.3649248]
[1680444125732,1.86513115,1814.9,1814.8,0.3649248]
[1680444133733,0.86513115,1814.9,1814.8,0.3649248]
[1680444138747,0.86513115,1814.9,1814.8,0.36064844]
[1680444139537,0.86513115,1814.9,1814.8,3.56844844]
[1680444143649,0.86513115,1814.9,1814.8,0.36064844]
[1680444144709,1.15760423,1815.0,1814.8,0.36064844]
[1680444145847,1.15760423,1814.9,1814.8,0.36064844]
[1680444148853,2.15760423,1814.9,1814.8,0.36064844]
[1680444149069,2.15760423,1814.9,1814.8,0.2432456]
[1680444149355,1.15760423,1814.9,1814.8,0.2432456]
[1680444149866,2.15760423,1814.9,1814.8,0.2432456]
[1680444151258,1.15760423,1814.9,1814.8,0.2432456]
[1680444155062,1.44360031,1815.0,1814.8,0.81645654]
[1680444155263,1.68701162,1815.0,1814.8,0.2432456]
[1680444155769,1.0,1814.9,1814.8,0.81645654]
[1680444156765,1.0,1814.9,1814.8,0.2432456]
[1680444157065,1.0,1814.9,1814.8,0.81645654]
[1680444157266,2.44360031,1814.9,1814.8,0.81645654]
[1680444159471,1.0,1814.9,1814.8,0.81645654]
[1680444160062,1.44360031,1815.0,1814.8,0.81645654]
[1680444160270,1.44360031,1814.9,1814.8,0.81645654]
[1680444160475,2.44360031,1814.9,1814.8,0.81645654]
[1680444160660,1.0,1814.9,1814.8,0.81645654]
[1680444161574,2.44360031,1814.9,1814.8,0.81645654]
[1680444161778,1.0,1814.9,1814.8,0.81645654]
[1680444162076,1.44360031,1815.0,1814.8,0.81645654]
[1680444162274,1.68702801,1815.0,1814.8,0.81645654]
[1680444162571,1.15657296,1814.9,1814.8,4.31410523]
[1680444168488,1.15657296,1815.0,1814.8,4.31410523]
[1680444168671,1.15657296,1815.0,1814.9,0.57471251]
[1680444169072,1.15657296,1815.0,1814.9,0.89319594]
[1680444183482,2.15657296,1815.0,1814.9,0.89319594]
[1680444183780,1.0,1815.0,1814.8,1.43777214]
[1680444183989,2.15603713,1815.0,1814.9,0.77777902]
[1680444187378,2.15603713,1815.0,1814.9,0.20306651]
[1680444187585,2.15603713,1815.0,1814.8,1.43777214]
[1680444188988,2.15603713,1815.0,1814.8,0.57471251]
[1680444189790,2.15603713,1815.0,1814.8,1.43777214]
[1680444191145,0.86695711,1814.9,1814.8,0.86305963]
[1680444195895,1.15603713,1815.0,1814.8,2.83424904]
[1680444195896,0.28503337,1815.0,1814.8,2.83424904]
[1680444196094,0.28503337,1815.0,1814.9,5.06912812]
[1680444196602,0.28503337,1815.0,1814.9,4.06912812]
[1680444203804,1.15190765,1815.0,1814.9,4.06912812]
[1680444205508,0.28503337,1815.0,1814.9,4.06912812]
[1680444205909,1.15190765,1815.0,1814.9,4.06912812]
[1680444211010,1.15190765,1815.0,1814.9,4.349905]
[1680444219910,1.15190765,1815.0,1814.9,1.142105]
[1680444220208,0.86687428,1815.1,1814.9,4.349905]
[1680444220434,2.15603713,1815.2,1815.0,0.57443136]
[1680444221219,0.86652926,1815.1,1815.0,0.57443136]
[1680444224217,1.15603713,1815.2,1815.0,0.57443136]
[1680444225216,0.86656724,1815.1,1815.0,0.57443136]
[1680444226022,0.86656724,1815.1,1815.0,0.85518673]
[1680444231724,0.86664405,1815.1,1815.0,0.85518673]
[1680444231926,1.15603713,1815.2,1815.0,0.85518673]
[1680444232326,0.8666461,1815.1,1815.0,0.85518673]
[1680444232528,2.15603713,1815.2,1815.0,0.85518673]
[1680444233225,1.15603713,1815.2,1815.0,0.85518673]
[1680444235032,1.15603713,1815.1,1815.0,0.85518673]
[1680444237834,1.15603713,1815.1,1815.0,1.71651485]
[1680444239956,1.15603713,1815.1,1815.0,1.14208349]
[1680444242847,0.21842184,1815.1,1815.0,0.28075537]
[1680444243134,1.15657247,1815.1,1815.0,1.14208349]
[1680444245232,1.15657247,1815.1,1815.0,1.71721307]
[1680444248229,1.15657247,1815.1,1815.0,1.14208349]
[1680444249333,1.44571559,1815.1,1814.7,4.64726108]
[1680444249639,1.86743559,1814.8,1814.6,1.43946108]
[1680444249838,1.86743559,1814.8,1814.5,4.64726108]
[1680444250047,1.86743559,1814.8,1814.6,0.68336087]
[1680444254045,0.86743559,1814.8,1814.6,0.68336087]
[1680444254239,0.86743559,1814.8,1814.5,4.64726108]
[1680444254939,1.86743559,1814.8,1814.5,4.64726108]
[1680444255151,0.86743559,1814.8,1814.5,4.64726108]
[1680444256136,0.86743559,1814.8,1814.5,3.2078]
[1680444256846,0.86743559,1814.8,1814.6,0.03587279]
[1680444258147,0.86743559,1815.0,1814.7,3.2078]
[1680444258555,0.86743559,1815.0,1814.8,1.0]
[1680444261462,0.86743559,1815.0,1814.7,3.2078]
[1680444261854,0.86743559,1815.0,1814.8,1.0]
[1680444268471,0.86743559,1815.0,1814.7,3.2078]
[1680444270888,0.86743559,1815.0,1814.8,0.15499312]
[1680444271084,0.86743559,1815.0,1814.8,1.15499312]
[1680444272283,0.86743559,1815.0,1814.8,0.15499312]
[1680444272774,5.65351559,1815.3,1814.8,0.15499312]
[1680444272775,1.44571559,1815.3,1814.9,3.2078]
[1680444272979,1.44571559,1815.3,1815.2,3.2078]
[1680444272980,0.86614197,1815.3,1815.2,3.2078]
[1680444273177,0.86614197,1815.4,1815.2,3.2078]
[1680444273474,0.86614197,1815.4,1815.0,4.2078]
[1680444273674,0.86614197,1815.4,1815.2,3.2078]
[1680444273876,0.86614197,1815.3,1815.0,3.2078]
[1680444276575,0.86614197,1815.2,1814.8,0.15499312]
[1680444276780,1.86614197,1815.1,1814.8,0.15499312]
[1680444276974,1.0,1815.1,1814.8,0.15499312]
[1680444277282,5.07394197,1815.1,1814.6,1.43946108]
[1680444277497,5.07394197,1815.1,1814.6,2.12272628]
[1680444278881,5.07394197,1815.1,1814.7,3.2078]
[1680444279281,5.07394197,1815.1,1814.7,4.35517977]
[1680444279788,4.07394197,1815.1,1814.7,4.35517977]
[1680444280082,0.86614197,1815.1,1814.7,4.35517977]
[1680444280301,4.07394197,1815.1,1814.7,4.35517977]
[1680444280881,0.86614197,1815.1,1814.7,4.35517977]
[1680444281799,0.86614197,1815.2,1814.7,4.35517977]
[1680444281987,4.07394197,1815.2,1814.7,4.35517977]
[1680444282289,0.86614197,1815.1,1814.7,4.35517977]
[1680444282486,0.86614197,1815.1,1814.8,1.0]
[1680444282787,0.86614197,1815.2,1814.8,2.14737977]
[1680444282987,0.86614197,1815.2,1814.8,1.0]
[1680444283201,0.86614197,1815.2,1814.9,3.2078]
[1680444285995,0.86614197,1815.2,1815.0,0.18610941]
[1680444300155,0.86614197,1815.1,1815.0,0.18610941]
[1680444300504,4.07394197,1815.1,1815.0,0.18610941]
[1680444304112,4.36265596,1815.1,1815.0,0.18610941]
[1680444305207,3.2078,1815.1,1815.0,0.18610941]
[1680444305704,4.36332651,1815.1,1815.0,0.18610941]
[1680444305914,3.2078,1815.1,1815.0,0.18610941]
[1680444306123,4.36326351,1815.1,1814.7,1.14737977]
[1680444306311,0.86660457,1814.9,1814.7,1.14737977]
[1680444306511,0.86660457,1814.9,1814.8,0.07370595]
[1680444308616,1.86660457,1815.0,1814.7,1.14737977]
[1680444308823,0.86660457,1814.9,1814.7,1.14737977]
[1680444309313,0.86660457,1814.9,1814.8,0.86151045]
[1680444310957,4.07440457,1814.9,1814.8,0.86151045]
[1680444311314,0.86660457,1814.9,1814.8,0.86151045]
[1680444312516,4.07440457,1814.9,1814.8,0.86151045]
[1680444312918,4.07440457,1814.9,1814.7,0.86151045]
[1680444315816,0.57755545,1814.8,1814.7,0.86151045]
[1680444318927,0.57755545,1814.8,1814.7,0.93519872]
[1680444324431,0.57755545,1814.8,1814.7,0.86151045]
[1680444328132,1.44416002,1814.9,1814.7,0.86151045]
[1680444328445,0.57755545,1814.9,1814.7,0.86151045]
[1680444328835,1.44416002,1814.9,1814.7,0.86151045]
[1680444329047,0.57755545,1814.9,1814.8,0.86151045]
[1680444329336,0.57755545,1814.9,1814.8,4.06931045]
[1680444331929,0.57755545,1814.9,1814.8,4.1429803]
[1680444333735,0.57755545,1814.9,1814.8,0.9351803]
[1680444333934,1.44416002,1814.9,1814.8,0.9351803]
[1680444334148,0.86660457,1814.9,1814.8,0.9351803]
[1680444334632,1.44427119,1814.9,1814.8,0.9351803]
[1680444335029,0.86660457,1814.9,1814.8,0.9351803]
[1680444335738,1.44428572,1814.9,1814.8,0.9351803]
[1680444335941,0.86660457,1814.9,1814.8,0.9351803]
[1680444336534,1.44432528,1814.9,1814.8,0.9351803]
[1680444336947,0.86660457,1814.9,1814.8,0.9351803]
[1680444339944,0.86660457,1814.9,1814.8,0.92805571]
[1680444348943,4.36326351,1815.0,1814.8,0.92805571]
[1680444349541,1.15546351,1814.9,1814.8,0.92805571]
[1680444349748,2.15546351,1814.9,1814.8,0.92805571]
[1680444349950,4.36326351,1815.0,1814.8,0.92805571]
[1680444350754,1.15546351,1814.9,1814.8,0.92805571]
[1680444350981,2.15546351,1814.9,1814.8,0.92805571]
[1680444351158,1.15546351,1814.9,1814.8,0.92805571]
[1680444351350,4.36326351,1815.0,1814.8,0.92805571]
[1680444351739,1.15546351,1815.0,1814.8,0.92805571]
[1680444352157,0.86725458,1814.9,1814.8,0.92805571]
[1680444354355,0.86725283,1814.9,1814.8,0.92805571]
[1680444355144,1.15546351,1815.0,1814.8,0.92805571]
[1680444355447,0.86726372,1814.9,1814.8,0.92805571]
[1680444355639,1.15546351,1815.0,1814.8,0.92805571]
[1680444355845,0.86726189,1814.9,1814.8,0.92805571]
[1680444356152,0.86726176,1814.9,1814.8,0.92805571]
[1680444356378,4.36326351,1815.0,1814.8,0.92805571]
[1680444356754,0.86726222,1814.9,1814.8,0.92805571]
[1680444357050,4.36326351,1815.0,1814.8,0.92805571]
[1680444357350,0.8672622,1814.9,1814.8,0.92805571]
[1680444358250,1.15546351,1815.0,1814.8,0.92805571]
[1680444358530,0.86726093,1814.9,1814.8,0.92805571]
[1680444361149,4.36326351,1815.0,1814.8,0.92805571]
[1680444361449,1.15546351,1814.9,1814.8,0.92805571]
[1680444361664,1.0,1814.9,1814.8,0.92805571]
[1680444362053,1.0,1814.9,1814.8,0.85438586]
[1680444362253,1.15546351,1814.9,1814.8,0.85438586]
[1680444362555,1.0,1814.9,1814.8,0.92693139]
[1680444362821,2.15546351,1814.9,1814.8,0.85438586]
[1680444362946,1.0,1814.9,1814.8,0.85438586]
[1680444363145,2.15546351,1814.9,1814.8,0.85438586]
[1680444363453,1.0,1814.9,1814.8,0.85438586]
[1680444363651,2.15546351,1814.9,1814.8,0.85438586]
[1680444363900,1.15546351,1814.9,1814.8,0.85438586]
[1680444364572,2.15546351,1814.9,1814.8,0.92692856]
[1680444367217,2.15546351,1814.9,1814.8,0.85438586]
[1680444371147,1.15546351,1814.9,1814.8,0.85438586]
[1680444371962,2.15546351,1814.9,1814.8,0.85438586]
[1680444375969,1.15546351,1814.9,1814.8,0.85438586]
[1680444376169,1.15546351,1814.9,1814.8,0.57439828]
[1680444376362,1.15546351,1814.9,1814.6,1.14737977]
[1680444376663,1.15546351,1814.9,1814.8,0.57439923]
[1680444376863,1.15546351,1814.9,1814.7,1.14737977]
[1680444377071,0.86725007,1814.8,1814.6,1.14737977]
[1680444377363,0.57815587,1814.7,1814.6,1.14737977]
[1680444378164,0.57815587,1814.7,1814.6,0.68334619]
[1680444378660,0.57815587,1814.7,1814.6,1.14886189]
[1680444379360,0.57815587,1814.7,1814.6,0.68334619]
[1680444379564,0.57815587,1814.7,1814.6,1.14882669]
[1680444379764,0.57815587,1814.7,1814.6,0.68334619]
[1680444380176,0.57815587,1814.7,1814.5,2.12280727]
[1680444380360,0.57815587,1814.7,1814.6,1.83224633]
[1680444380567,0.57815587,1814.7,1814.6,0.68334619]
[1680444380762,0.57815587,1814.7,1814.6,1.1488956]
[1680444381251,0.57815587,1814.7,1814.6,1.14889317]
[1680444381378,0.57815587,1814.7,1814.6,0.68334619]
[1680444381568,0.57815587,1814.7,1814.5,2.12280727]
[1680444381761,0.57815587,1814.7,1814.6,1.14888933]
[1680444381965,0.57097953,1814.7,1814.6,1.14888933]
[1680444382561,0.57097953,1814.7,1814.6,2.12280727]
[1680444382860,0.57097953,1814.7,1814.6,0.68334619]
[1680444383064,0.57097953,1814.7,1814.5,2.12280727]
[1680444383410,0.57097953,1814.7,1814.6,1.14892204]
[1680444384777,0.57097953,1814.7,1814.6,1.23110138]
[1680444384975,0.57097953,1814.7,1814.6,1.91444757]
[1680444386764,0.57097953,1814.7,1814.6,0.76552553]
[1680444387969,0.57097953,1814.7,1814.6,2.20498661]
[1680444388188,0.57097953,1814.7,1814.6,0.76552553]
[1680444391280,0.57097953,1814.7,1814.6,1.23077403]
[1680444391474,0.57097953,1814.7,1814.6,0.76552553]
[1680444391675,0.57097953,1814.7,1814.6,1.23077957]
[1680444391870,0.57097953,1814.7,1814.6,0.76552553]
[1680444392369,0.57097953,1814.7,1814.6,1.91414968]
[1680444393677,0.57097953,1814.7,1814.6,0.76552553]
[1680444394980,0.57097953,1814.7,1814.6,0.08217934]
[1680444395176,0.57097953,1814.7,1814.6,0.76552553]
[1680444395385,0.57097953,1814.7,1814.6,1.91416271]
[1680444397493,0.57097953,1814.7,1814.6,0.76552553]
[1680444397682,0.57097953,1814.7,1814.6,1.23085905]
[1680444397882,0.57097953,1814.7,1814.6,0.76552553]
[1680444398571,0.57097953,1814.7,1814.6,1.23066568]
[1680444398772,0.57097953,1814.7,1814.6,1.91401187]
[1680444402486,0.57097953,1814.7,1814.6,0.76552553]
[1680444404582,0.57097953,1814.7,1814.6,2.20498661]
[1680444410902,0.57097953,1814.7,1814.6,0.76552553]
[1680444411289,0.57097953,1814.7,1814.6,2.20498661]
[1680444420898,0.57097953,1814.7,1814.6,0.76552553]
[1680444421199,0.57097953,1814.7,1814.6,2.20498661]
[1680444421401,0.57097953,1814.7,1814.6,0.76552553]
[1680444423801,1.4382296,1814.7,1814.6,1.91293934]
[1680444424302,0.86725007,1814.7,1814.6,1.22959315]
[1680444424569,1.15546351,1814.7,1814.6,0.86064841]
[1680444426904,1.15546351,1814.7,1814.6,0.57364808]
[1680444428604,0.86700522,1814.7,1814.6,0.57364808]
[1680444455624,1.86700522,1814.7,1814.6,0.57364808]
[1680444456427,1.0,1814.7,1814.6,0.57364808]
[1680444456629,1.86665314,1814.7,1814.6,0.57364808]
[1680444457032,1.0,1814.7,1814.6,0.57364808]
[1680444457231,1.0,1814.7,1814.5,0.86064841]
[1680444457232,2.15546351,1814.7,1814.5,0.57364808]
[1680444457429,2.15546351,1814.7,1814.4,0.57364808]
[1680444457430,4.36348295,1814.6,1814.4,0.57364808]
[1680444457764,1.86676647,1814.5,1814.4,0.57364808]
[1680444458008,1.0,1814.5,1814.3,0.57364808]
[1680444458229,4.36362701,1814.4,1814.2,0.57364808]
[1680444458444,1.8668725,1814.3,1814.2,0.57364808]
[1680444458928,1.8668725,1814.3,1814.1,0.57364808]
[1680444459424,3.2078,1814.2,1814.1,0.57364808]
[1680444459631,1.8668725,1814.3,1814.1,0.57364808]
[1680444459828,3.2078,1814.2,1814.1,0.57364808]
[1680444461830,3.2078,1814.2,1814.1,0.57001731]
[1680444462532,3.2078,1814.2,1813.9,0.86064841]
[1680444464729,3.2078,1814.2,1813.8,0.86064841]
[1680444465455,3.2078,1814.2,1813.9,0.86064841]
[1680444465830,3.20163525,1814.2,1813.8,1.86064841]
[1680444466033,3.20163525,1814.2,1813.8,0.86064841]
[1680444467040,3.20163525,1814.2,1813.8,1.86064841]
[1680444467235,3.20163525,1814.2,1813.8,0.86064841]
[1680444468644,1.0,1814.1,1813.8,0.86064841]
[1680444468875,3.2078,1814.0,1813.7,0.86064841]
[1680444469338,1.0,1813.9,1813.7,0.86064841]
[1680444470636,3.2078,1814.0,1813.7,0.86064841]
[1680444471838,1.0,1813.9,1813.6,0.86264841]
[1680444472040,1.0,1813.9,1813.6,0.002]
[1680444473646,3.2078,1814.0,1813.6,0.002]
[1680444473847,1.0,1813.9,1813.6,0.002]
[1680444474856,3.2078,1814.0,1813.6,0.002]
[1680444475260,1.0,1813.9,1813.6,0.002]
[1680444475651,3.2078,1814.0,1813.6,0.002]
[1680444475844,1.0,1813.9,1813.6,0.002]
[1680444476047,3.2078,1814.0,1813.6,0.002]
[1680444476314,1.0,1813.9,1813.6,0.002]
[1680444476653,3.2078,1814.0,1813.6,0.002]
[1680444476853,1.0,1813.9,1813.6,0.002]
[1680444477388,3.2078,1814.0,1813.6,0.002]
[1680444477551,1.0,1813.9,1813.6,0.002]
[1680444477950,3.2078,1814.0,1813.6,0.002]
[1680444478248,1.0,1813.9,1813.6,0.002]
[1680444478453,3.2078,1814.0,1813.6,0.002]
[1680444478757,1.0,1813.9,1813.6,0.002]
[1680444478953,3.2078,1814.0,1813.6,0.002]
[1680444479152,1.0,1813.9,1813.6,0.002]
[1680444480060,3.2078,1814.0,1813.6,0.002]
[1680444480253,1.0,1813.9,1813.6,0.002]
[1680444480657,3.2078,1814.0,1813.6,0.002]
[1680444480849,1.0,1813.9,1813.6,0.002]
[1680444481258,3.2078,1814.0,1813.6,0.002]
[1680444481454,1.0,1813.9,1813.6,0.002]
[1680444481772,3.2078,1814.0,1813.6,0.002]
[1680444482054,1.0,1813.9,1813.6,0.002]
[1680444482446,3.2078,1814.0,1813.6,0.002]
[1680444482649,1.0,1813.9,1813.6,0.002]
[1680444483061,3.2078,1814.0,1813.6,0.002]
[1680444483258,1.0,1813.9,1813.6,0.002]
[1680444483551,3.2078,1814.0,1813.6,0.002]
[1680444483797,1.0,1813.9,1813.6,0.002]
[1680444483950,0.25448505,1813.9,1813.6,0.002]
[1680444489256,0.25448505,1813.9,1813.7,3.2078]
[1680444489660,1.8668725,1814.3,1813.7,3.2078]
[1680444490262,3.2078,1814.2,1813.7,3.2078]
[1680444494759,4.0746725,1814.2,1813.7,3.2078]
[1680444498495,13.669,1814.4,1814.1,3.2078]
[1680444498660,0.8668725,1814.5,1814.1,3.2078]
[1680444498877,0.12218148,1814.3,1814.1,3.2078]
[1680444499176,0.8668725,1814.5,1814.1,3.2078]
[1680444499469,2.15582701,1814.6,1814.1,3.2078]
[1680444499470,0.8668725,1814.6,1814.1,3.2078]
[1680444499676,0.8668725,1814.5,1814.1,3.2078]
[1680444499931,1.8668725,1814.6,1814.1,3.2078]
[1680444500468,0.8668725,1814.6,1814.1,3.2078]
[1680444500764,0.8668725,1814.5,1814.1,3.2078]
[1680444502169,0.57685324,1814.4,1814.1,3.2078]
[1680444502371,1.44372574,1814.5,1814.1,3.2078]
[1680444502677,0.57685324,1814.4,1814.1,4.06844841]
[1680444504568,1.44372574,1814.4,1814.0,0.86064841]
[1680444506376,0.57685324,1814.4,1814.0,0.86064841]
[1680444506683,1.44372574,1814.4,1814.0,0.86064841]
[1680444506897,0.57685324,1814.4,1814.0,0.86064841]
[1680444507067,0.57685324,1814.4,1814.1,0.86064841]
[1680444508879,0.57685324,1814.4,1814.0,0.86064841]
[1680444509774,0.57685324,1814.4,1814.1,0.86064841]
[1680444509971,0.57685324,1814.4,1814.0,0.86064841]
[1680444510697,0.57685324,1814.4,1814.1,4.06844841]
[1680444510877,0.57685324,1814.4,1814.1,3.2078]
[1680444511728,0.57685324,1814.4,1814.0,0.86064841]
[1680444513907,0.12595621,1814.3,1814.0,0.86064841]
[1680444514090,0.57685324,1814.4,1814.0,0.86064841]
[1680444514894,0.57685324,1814.4,1814.1,3.2078]
[1680444515382,1.44372574,1814.5,1814.1,3.2078]
[1680444515881,0.57685324,1814.4,1814.1,3.2078]
[1680444516086,0.57685324,1814.4,1814.0,0.86064841]
[1680444516387,1.44372574,1814.5,1814.0,0.86064841]
[1680444516687,0.57685324,1814.4,1814.0,0.86064841]
[1680444519905,3.78465324,1814.4,1814.0,0.86064841]
[1680444522388,0.57685324,1814.4,1814.0,0.86064841]
[1680444522801,0.57685324,1814.4,1814.1,3.2078]